[Event "US Masters 2024"]
[Site "Charlotte"]
[Date "2024.11.28"]
[Round "2.22"]
[White "Koustav Chatterjee"]
[Black "Petenyi, Tamas"]
[Result "1/2-1/2"]
[ECO "B38"]
[WhiteElo "2510"]
[BlackElo "2303"]
[Annotator "TA"]
[PlyCount "127"]
[EventDate "2024.09.23"]
[EventType "swiss"]
[EventCountry "USA"]
[SourceTitle "playchess.com"]
[Source "ChessBase"]
[SourceQuality "1"]
[TimeControl "5400+30"]

{[%evp 31,127,-11,-7,-10,-18,-10,0,-30,-33,-33,-17,-32,0,-39,0,0,0,0,0,0,0,0,0,-7,0,0,0,0,0,0,0,0,0,0,0,0,0,0,0,0,0,0,0,0,0,0,0,0,0,0,0,0,0,-135,-146,-131,-68,-204,-195,-169,-176,-296,-298,-307,-298,-252,-293,-287,-284,-239,-233,-292,-256,-353,-351,-345,-350,-354,-347,-331,-282,-309,-301,-285,-289,-271,-162,-166,-183,-237,-223,-197,-140,-141,0,-196,0,-115]} 1. d4 {[%emt 0:01:21]} Nf6 {[%emt 0:02:16]} 2. c4 {[%emt 0:00:14]} g6 {[%emt 0:00:50]} 3. Nc3 {[%emt 0:00:09]} Bg7 {[%emt 0:00:05]} 4. e4 {[%emt 0:00:38]} d6 {[%emt 0:00:10]} 5. h3 {[%emt 0:01:21]} O-O {[%emt 0:04:01]} 6. Be3 {[%emt 0:00:17]} c5 {[%emt 0:06:06]} 7. Nf3 {[%emt 0:02:19]} cxd4 {[%emt 0:00:55]} 8. Nxd4 {[%emt 0:00:06]} Nc6 {[%emt 0:02:33]} 9. Be2 {[%emt 0:01:30]} Nxd4 {[%emt 0:04:31]} 10. Bxd4 {[%emt 0:00:47]} Bd7 {[%emt 0:02:36]} 11. O-O {[%emt 0:01:33]} Bc6 {[%emt 0:00:50]} 12. Qd3 {[%emt 0:01:12]} a6 {[%emt 0:01:50] B38: Sicilian: Maroczy Bind with 5...Bg7 and 7...0-0.} 13. a4 {[%emt 0:12:58]} a5 {[%emt 0:04:45]} 14. Rfe1 $146 {[%emt 0:19:12]} ({Predecessor:} 14. Kh1 Nd7 15. Bxg7 Kxg7 16. f4 Qb6 17. Nb5 f6 18. Bf3 Rad8 19. Qc3 Nc5 20. Rfe1 {1-0 Jeske,E (2244)-Kraft,H (2113) Oberfranken-ch Seniors 2009 (7)}) 14... Nd7 {[%emt 0:03:24]} 15. Bxg7 {[%emt 0:01:10]} Kxg7 {[%emt 0:00:06]} 16. Bf1 {[%emt 0:01:00]} Nc5 {[%emt 0:02:41]} 17. Qc2 {[%emt 0:06:47]} e5 {[%emt 0:05:28]} 18. Rad1 {[%emt 0:04:43]} Qe7 {[%emt 0:04:05]} 19. Nd5 {[%emt 0:07:24]} Bxd5 {[%emt 0:02:20]} 20. Rxd5 {[%emt 0:00:06]} Rfd8 {[%emt 0:05:17]} 21. g3 {[%emt 0:02:06]} Ne6 {[%emt 0:04:51]} 22. Red1 {[%emt 0:01:01]} b6 {[%emt 0:05:38]} 23. h4 {[%emt 0:02:01]} Nd4 {[%emt 0:00:38]} 24. R1xd4 {[%emt 0:06:51]} exd4 {[%emt 0:00:08]} 25. Qd3 {[%emt 0:00:08]} Rac8 {[%emt 0:09:51]} 26. Rxd4 {[%emt 0:02:35]} Rc5 {[%emt 0:01:52]} 27. f4 {[%emt 0:01:11]} f6 {[%emt 0:01:41]} 28. Bg2 {[%emt 0:04:02]} Qc7 {[%emt 0:06:55]} 29. b3 {[%emt 0:02:41]} Qe7 {[%emt 0:00:08]} 30. Bf3 {[%emt 0:01:56]} h5 {[%emt 0:04:04]} 31. Kg2 {[%emt 0:02:37]} Kh6 {[%emt 0:01:13]} 32. Bd1 {[%emt 0:01:53]} Kg7 {[%emt 0:01:41]} 33. Bc2 {[%emt 0:04:05]} Qe6 {[%emt 0:01:02]} 34. Kh2 {[%emt 0:01:20]} Rd7 {[%emt 0:00:20]} 35. Kg2 {[%emt 0:01:54]} Rd8 {[%emt 0:00:04]} 36. Qf3 {[%emt 0:01:17]} Rd7 {[%emt 0:00:55]} 37. Rd2 {[%emt 0:01:02]} Re7 {[%emt 0:02:52]} 38. Rf2 {[%emt 0:02:15]} Qg4 {[%emt 0:03:05]} 39. Qd3 {[%emt 0:00:11]} Qe6 {[%emt 0:00:24]} 40. Qd1 {[%emt 0:00:27]} Rd7 {[%emt 0:01:00]} 41. Qd3 {[%emt 0:01:42]} Re7 {[%emt 0:00:38]} 42. f5 {[%emt 0:01:33]} (42. Qd1 $11) 42... gxf5 $17 {[%emt 0:00:56]} 43. exf5 {[%emt 0:00:04]} Qd7 {[%emt 0:01:11]} 44. Qd1 {[%emt 0:00:16]} (44. Bd1 $15) 44... Qc6+ {[%emt 0:01:21]} 45. Kh2 {[%emt 0:00:16] [#]} Qe8 $1 {[%emt 0:00:15]} 46. Bd3 {[%emt 0:02:14]} (46. Qf3 $142) 46... Re1 $19 {[%emt 0:00:59]} 47. Qf3 {[%emt 0:00:06]} Qe3 {[%emt 0:01:49]} 48. Kg2 {[%emt 0:00:43]} Qxf3+ {[%emt 0:00:32]} 49. Kxf3 {[%emt 0:00:08]} Rce5 {[%emt 0:00:12]} 50. Rd2 {[%emt 0:00:05]} d5 {[%emt 0:00:56]} 51. Kf2 {[%emt 0:00:20]} Rc1 {[%emt 0:00:32]} 52. Bc2 {[%emt 0:01:51]} dxc4 {[%emt 0:00:39]} 53. bxc4 {[%emt 0:00:01]} Rc5 {[%emt 0:00:19]} 54. Rd7+ {[%emt 0:00:05]} Kf8 {[%emt 0:00:19]} 55. Bd3 {[%emt 0:00:04]} Ra1 {[%emt 0:01:02]} 56. Rd6 {[%emt 0:00:04]} Ke7 {[%emt 0:00:29]} ({Not} 56... Rxa4 57. Rxf6+ Ke8 58. Rxb6 $15) 57. Re6+ {[%emt 0:00:01]} Kf7 {[%emt 0:00:07]} 58. Rxb6 {[%emt 0:00:04]} Rxa4 {[%emt 0:00:21]} (58... Re5 $142 {[%cal Oa1a3] Threatens to win with ...Ra3!} 59. Rb7+ Ke8 (59... Re7 $2 60. Rb3 $19) 60. Rb8+ Kd7 61. Rb7+ Kd8) 59. Rb7+ $19 {[%emt 0:00:47]} Kf8 {[%emt 0:00:11]} 60. Ke3 {[%emt 0:00:11]} (60. Rb8+ {was necessary.} Ke7 61. Ke3) 60... Rc8 $19 {[%emt 0:01:35]} 61. Rb6 {[%emt 0:00:43]} Ke7 {[%emt 0:00:49]} (61... Re8+ $19 62. Kf4 Kf7) 62. Rb7+ $17 {[%emt 0:00:15]} Kf8 {[%emt 0:00:21]} (62... Kd6 $17 63. Kd4 Ra1) 63. Rb6 $1 $19 {[%emt 0:00:01]} Ke7 $2 {[%emt 0:00:17]} (63... Re8+ $19 64. Kf4 Kf7) 64. Re6+ {[%emt 0:04:36]} (64. Rb7+ $1 $11 Kf8) 1/2-1/2

[Event "US Masters 2024"]
[Site "Charlotte"]
[Date "2024.11.28"]
[Round "2.23"]
[White "Canty, James"]
[Black "Groff, Jordan"]
[Result "1/2-1/2"]
[ECO "B32"]
[WhiteElo "2189"]
[BlackElo "2048"]
[Annotator "RC"]
[PlyCount "114"]
[EventDate "2024.09.23"]
[EventType "swiss"]
[EventCountry "USA"]
[SourceTitle "playchess.com"]
[Source "ChessBase"]
[SourceQuality "1"]
[TimeControl "5400+30"]

1. e4 {[%emt 0:01:47]} c5 {[%emt 0:00:09]} 2. Nf3 {[%emt 0:00:09]} Nc6 {[%emt 0:00:08]} 3. d4 {[%emt 0:00:10]} cxd4 {[%emt 0:00:08]} 4. Nxd4 {[%emt 0:00:04]} e5 {[%emt 0:00:15]} 5. Nb5 {[%emt 0:00:07]} d6 {[%emt 0:00:06]} 6. N1c3 {[%emt 0:02:29]} a6 {[%emt 0:00:14]} 7. Na3 {[%emt 0:00:08]} Be7 {[%emt 0:00:11]} 8. Nc4 {[%emt 0:02:25]} b5 {[%emt 0:00:18]} 9. Ne3 {[%emt 0:00:04]} Nf6 {[%emt 0:00:09]} 10. a3 {[%emt 0:03:21]} O-O {[%emt 0:04:07]} 11. g3 {[%emt 0:01:08]} Rb8 {[%emt 0:04:33]} 12. Bg2 {[%emt 0:01:22]} a5 {[%emt 0:01:45]} 13. O-O {[%emt 0:00:12]} Re8 {[%emt 0:04:33]} 14. Kh1 {[%emt 0:04:15]} Bf8 {[%emt 0:18:20]} 15. Qd3 {[%emt 0:10:32]} b4 {[%emt 0:08:26]} 16. Ncd5 {[%emt 0:03:23]} Nxd5 {[%emt 0:03:24]} 17. Nxd5 {[%emt 0:00:46]} bxa3 {[%emt 0:01:25]} 18. Rxa3 {[%emt 0:01:23]} Nb4 {[%emt 0:02:00]} 19. Qd2 {[%emt 0:00:12]} Be6 {[%emt 0:03:34]} 20. c3 {[%emt 0:06:24]} Nxd5 {[%emt 0:00:08]} 21. exd5 {[%emt 0:00:06]} Bd7 {[%emt 0:00:36]} 22. b3 {[%emt 0:02:41]} Qc7 {[%emt 0:06:47]} 23. Bb2 {[%emt 0:03:44]} Rb7 {[%emt 0:05:12]} 24. Ba1 {[%emt 0:06:16]} Reb8 {[%emt 0:03:21]} 25. Qa2 {[%emt 0:00:18]} g6 {[%emt 0:02:43]} 26. Bf3 {[%emt 0:07:17]} Bh3 {[%emt 0:06:13]} 27. Re1 {[%emt 0:03:09]} Qc8 {[%emt 0:02:06]} 28. Bg2 {[%emt 0:05:33]} h5 {[%emt 0:01:23]} 29. c4 {[%emt 0:02:59]} h4 {[%emt 0:05:08]} 30. f4 {[%emt 0:09:32]} Bxg2+ {[%emt 0:02:45]} 31. Qxg2 {[%emt 0:01:58]} h3 {[%emt 0:02:51]} 32. Qe2 {[%emt 0:01:05]} Rxb3 {[%emt 0:01:56]} 33. Rxb3 {[%emt 0:00:13]} Rxb3 {[%emt 0:00:05]} 34. fxe5 {[%emt 0:00:07]} Qf5 {[%emt 0:01:01]} 35. g4 {[%emt 0:02:21]} Qf4 {[%emt 0:04:00]} 36. e6 {[%emt 0:09:58]} Rf3 {[%emt 0:00:15]} 37. exf7+ {[%emt 0:02:34]} Kh7 {[%emt 0:01:18]} 38. Bd4 {[%emt 0:02:27]} Qxg4 {[%emt 0:02:04]} 39. Rg1 {[%emt 0:00:24]} Qf5 {[%emt 0:00:24]} 40. Qe6 {[%emt 0:00:27]} Qxf7 {[%emt 0:00:41]} 41. Qxf7+ {[%emt 0:01:09]} Rxf7 {[%emt 0:00:08]} 42. Rg3 {[%emt 0:00:07]} Rf1+ {[%emt 0:00:32]} 43. Bg1 {[%emt 0:00:02]} Bg7 {[%emt 0:02:28]} 44. Rxh3+ {[%emt 0:00:07]} Kg8 {[%emt 0:00:06]} 45. Kg2 {[%emt 0:00:10]} Rc1 {[%emt 0:00:38]} 46. c5 {[%emt 0:03:59]} Rc2+ {[%emt 0:01:12]} 47. Kf1 {[%emt 0:00:49]} dxc5 {[%emt 0:00:19]} 48. Ra3 {[%emt 0:01:40]} Rc1+ {[%emt 0:00:59]} 49. Kg2 {[%emt 0:00:06]} Ra1 {[%emt 0:00:20]} 50. Bxc5 {[%emt 0:00:35]} Rxa3 {[%emt 0:00:46]} 51. Bxa3 {[%emt 0:00:05]} Kf7 {[%emt 0:00:37]} 52. Kf3 {[%emt 0:00:08]} Bc3 {[%emt 0:01:04]} 53. Kg4 {[%emt 0:01:52]} Bb4 {[%emt 0:00:28]} 54. Bb2 {[%emt 0:00:09]} a4 {[%emt 0:00:21]} 55. h4 {[%emt 0:00:04]} a3 {[%emt 0:00:14]} 56. Bxa3 {[%emt 0:00:10]} Bxa3 {[%emt 0:00:07]} 57. h5 {[%emt 0:00:02]} gxh5+ {[%emt 0:00:41]} 1/2-1/2

[Event "US Masters 2024"]
[Site "Charlotte"]
[Date "2024.11.28"]
[Round "2.24"]
[White "Saxena, Vihaan"]
[Black "Belenkaya, Dina"]
[Result "0-1"]
[ECO "E01"]
[WhiteElo "1961"]
[BlackElo "2151"]
[Annotator "RC"]
[PlyCount "146"]
[EventDate "2024.09.23"]
[EventType "swiss"]
[EventCountry "USA"]
[SourceTitle "playchess.com"]
[Source "ChessBase"]
[SourceQuality "1"]
[TimeControl "5400+30"]

1. d4 {[%emt 0:00:27]} Nf6 {[%emt 0:16:48]} 2. Nf3 {[%emt 0:00:27]} d5 {[%emt 0:00:15]} 3. c4 {[%emt 0:01:01]} e6 {[%emt 0:00:45]} 4. g3 {[%emt 0:01:38]} Bb4+ {[%emt 0:00:25]} 5. Bd2 {[%emt 0:00:06]} Bd6 {[%emt 0:00:39]} 6. Bg2 {[%emt 0:02:03]} O-O {[%emt 0:00:13]} 7. Qc2 {[%emt 0:01:46]} Nbd7 {[%emt 0:01:19]} 8. O-O {[%emt 0:02:00]} c6 {[%emt 0:00:53]} 9. Bg5 {[%emt 0:05:11]} h6 {[%emt 0:00:26]} 10. Bxf6 {[%emt 0:01:10]} Qxf6 {[%emt 0:03:44]} 11. Nc3 {[%emt 0:19:28]} dxc4 {[%emt 0:08:41]} 12. Ne4 {[%emt 0:00:49]} Qg6 {[%emt 0:02:52]} 13. Ne1 {[%emt 0:11:09]} e5 {[%emt 0:06:47]} 14. Qxc4 {[%emt 0:06:17]} Nb6 {[%emt 0:02:25]} 15. Qc3 {[%emt 0:01:54]} Nd5 {[%emt 0:02:22]} 16. Qc4 {[%emt 0:02:12]} Nb6 {[%emt 0:02:13]} 17. Qc3 {[%emt 0:00:33]} exd4 {[%emt 0:05:31]} 18. Qxd4 {[%emt 0:00:35]} Bc7 {[%emt 0:00:52]} 19. Nc3 {[%emt 0:07:07]} Be6 {[%emt 0:04:44]} 20. Nf3 {[%emt 0:05:57]} Rad8 {[%emt 0:01:07]} 21. Qb4 {[%emt 0:00:34]} Bc4 {[%emt 0:09:37]} 22. b3 {[%emt 0:04:29]} Bd6 {[%emt 0:04:53]} 23. Qa5 {[%emt 0:01:35]} Ba6 {[%emt 0:00:59]} 24. Rfd1 {[%emt 0:03:14]} Rfe8 {[%emt 0:02:14]} 25. e3 {[%emt 0:06:15]} Qf6 {[%emt 0:02:16]} 26. Rac1 {[%emt 0:02:06]} g6 {[%emt 0:04:03]} 27. Rd4 {[%emt 0:03:13]} Qe7 {[%emt 0:06:03]} 28. Rcd1 {[%emt 0:02:33]} Bc7 {[%emt 0:05:18]} 29. Rxd8 {[%emt 0:02:04]} Bxd8 {[%emt 0:00:37]} 30. Na4 {[%emt 0:03:27]} Nxa4 {[%emt 0:02:24]} 31. Qxa4 {[%emt 0:00:12]} Bb6 {[%emt 0:01:08]} 32. Qf4 {[%emt 0:02:03]} Kg7 {[%emt 0:00:38]} 33. h4 {[%emt 0:00:28]} Qf6 {[%emt 0:00:50]} 34. Qxf6+ {[%emt 0:00:38]} Kxf6 {[%emt 0:03:29]} 35. Bf1 {[%emt 0:00:51]} Bxf1 36. Kxf1 h5 {[%emt 0:01:00]} 37. Rd7 {[%emt 0:00:43]} Re7 {[%emt 0:00:30]} 38. Rxe7 {[%emt 0:00:39]} Kxe7 {[%emt 0:00:30]} 39. Nd2 {[%emt 0:03:06]} Bd8 {[%emt 0:00:00]} 40. Ke2 {[%emt 0:00:00]} Kd6 {[%emt 0:01:00]} 41. Kd3 {[%emt 0:00:00]} f6 {[%emt 0:00:00]} 42. f4 {[%emt 0:00:15]} b5 {[%emt 0:00:00]} 43. Ne4+ {[%emt 0:00:29]} Kd5 {[%emt 0:00:00]} 44. Nc3+ {[%emt 0:00:27]} Ke6 {[%emt 0:00:00]} 45. Ne4 {[%emt 0:00:44]} Bb6 {[%emt 0:00:05]} 46. b4 {[%emt 0:00:34]} a5 {[%emt 0:01:41]} 47. a3 {[%emt 0:00:08]} a4 {[%emt 0:00:18]} 48. Nc3 {[%emt 0:01:08]} Kf5 {[%emt 0:00:04]} 49. Ne4 Bd8 {[%emt 0:00:39]} 50. Nf2 Bb6 {[%emt 0:00:23]} 51. Ne4 Bc7 {[%emt 0:01:39]} 52. Nf2 Ke6 {[%emt 0:01:11]} 53. Ne4 {[%emt 0:01:55]} Bd8 {[%emt 0:00:00]} 54. Nc5+ {[%emt 0:00:30]} Kf5 {[%emt 0:00:22]} 55. Nd7 Be7 {[%emt 0:01:08]} 56. Kd4 {[%emt 0:01:40]} Kg4 {[%emt 0:00:00]} 57. Nb8 {[%emt 0:00:04]} Kxg3 {[%emt 0:00:26]} 58. Nxc6 {[%emt 0:01:36]} Bf8 {[%emt 0:00:11]} 59. Ke4 {[%emt 0:00:00]} Kxh4 {[%emt 0:00:26]} 60. Kf3 {[%emt 0:00:07]} g5 {[%emt 0:00:09]} 61. fxg5 {[%emt 0:00:30]} fxg5 {[%emt 0:00:01]} 62. Kg2 {[%emt 0:00:09]} g4 {[%emt 0:01:08]} 63. Nd4 {[%emt 0:01:01]} Bxb4 {[%emt 0:00:14]} 64. axb4 {[%emt 0:00:24]} a3 {[%emt 0:00:01]} 65. Nc2 {[%emt 0:00:47]} a2 {[%emt 0:00:01]} 66. Na1 {[%emt 0:00:30]} Kg5 {[%emt 0:00:03]} 67. Kg3 {[%emt 0:00:07]} h4+ {[%emt 0:00:04]} 68. Kg2 {[%emt 0:00:05]} Kf5 {[%emt 0:03:46]} 69. Nb3 {[%emt 0:01:50]} Ke4 {[%emt 0:00:00]} 70. Kf2 {[%emt 0:00:30]} g3+ {[%emt 0:00:00]} 71. Ke2 {[%emt 0:00:00]} h3 {[%emt 0:00:00]} 72. Nc5+ {[%emt 0:00:00]} Kd5 {[%emt 0:00:00]} 73. Nb3 {[%emt 0:00:00]} h2 {[%emt 0:00:00]} 0-1